Cogmind - Beta 11.1 @@@ ROGUE MODE // 2022.07.24 @ 20:28:23 Player: gorb Result: Destroyed by G-47 Trooper with Particle Gun Performance ------------- Evolutions (0) 0 Regions Visited (1) 200 Robots Destroyed (3) 15 Value Destroyed (74) 74 Prototype IDs (0) 0 Alien Tech Used (0) 0 Bonus (0) 0 TOTAL SCORE: 289 Bonus ------- None Cogmind --------- Core Integrity 0/250 Matter 300/300 Energy 250/250 System Corruption 0% Temperature Cool (9) Movement Rolling (115) Ox1 Location -10/Materials Parts ------- > --- POWER (1) -------- Ion Engine > --- PROPULSION (2) --- Compact Wheel > --- UTILITY (2) ------ Medium Storage Unit ECM Suite > --- WEAPON (2) ------- Light Assault Rifle > --- INVENTORY (10) --- Ion Engine Ion Engine Aluminum Leg Aluminum Leg Hover Unit Flight Unit Seismic Detector Field Recycling Unit (0) Peak State ------------ > --- POWER ------------ Light Ion Engine > --- PROPULSION ------- Wheel Wheel > --- UTILITY ---------- Medium Storage Unit ECM Suite > --- WEAPON ----------- Small Laser Plasma Cutter > --- INVENTORY -------- Ion Engine Ion Engine Aluminum Leg Aluminum Leg Compact Wheel Hover Unit Flight Unit Seismic Detector Field Recycling Unit Light Assault Rifle [Rating: 9] Favorites ----------- Power Light Ion Engine Engine Light Ion Engine Propulsion Wheel Leg Aluminum Leg Wheel Wheel Flight Unit Flight Unit Utility Medium Storage Unit Device ECM Suite Storage Medium Storage Unit Weapon Small Laser Energy Gun Small Laser Ballistic Gun Light Assault Rifle Special Weapon Plasma Cutter Build | -11 -10 ------- Run | Scr Mat Slots Evolved . | . . Power . | . . Propulsion . | . . Utility . | . . Weapon . | . . Parts Attached 21 | 9 12 Power 3 | 1 2 Engine 3 | 1 2 Core . | . . Reactor . | . . Propulsion 11 | 6 5 Treads . | . . Leg 2 | 2 . Wheel 8 | 4 4 Hover . | . . Flight 1 | . 1 Utility 3 | 1 2 Device 1 | . 1 Storage 2 | 1 1 Processor . | . . Hackware . | . . Protection . | . . Artifact . | . . Weapon 4 | 1 3 Energy Gun 1 | 1 . Energy Cannon . | . . Ballistic Gun 1 | . 1 Ballistic Cannon . | . . Launcher . | . . Special Weapon 2 | . 2 Impact Weapon . | . . Slashing Weapon . | . . Piercing Weapon . | . . Special Melee Weapon . | . . Unidentified Prototypes . | . . Parts Lost 7 | . 7 Power 1 | . 1 Propulsion 3 | . 3 Utility . | . . Weapon 3 | . 3 Highest Loss Streak 3 | . 3 To Critical Strikes . | . . Average Slot Usage (%) 82 | . 82 Engine 13 | . 13 Wheel 26 | . 26 Device 8 | . 8 Storage 14 | . 14 Energy Gun 11 | . 11 Ballistic Gun 2 | . 2 Special Weapon 3 | . 3 Naked Turns . | . . Heaviest Build 19 | 11 19 Greatest Support 32 | 26 32 Greatest Overweight (x) 2 | . 2 Average Overweight (x) . | . . Largest Inventory Capacity 10 | 8 10 Average Capacity 9 | 7 9 Most Carried 10 | 4 10 Average Carried 6 | 2 7 Final Capacity 10 | 8 10 Final Carried 8 | 4 8 Class Distribution -------------------- 100% | Mutant Dominant Class ---------------- Mutant | -10/Materials Resources | -11 -10 ----------- Run | Scr Mat Matter Collected 409 | 217 192 Remotely . | . . Salvage Created 177 | . 177 Parts 8 | . 8 Haulers Intercepted . | . . Recyclers Shooed 1 | . 1 Parts Field Recycled . | . . Retrieved Matter . | . . Parts Self-Destructed . | . . Prevented . | . . Kills | -11 -10 ------- Run | Scr Mat Combat Hostiles Destroyed 2 | . 2 Guns 2 | . 2 Classes Destroyed 2 | . 2 Recycler 1 | . 1 Grunt 2 | . 2 Best Kill Streak 2 | . 2 Combat Bots Only 2 | . 2 Max Kills in Single Turn 1 | . 1 Gunslinging . | . . Exploded . | . . Melee . | . . Uniques/NPCs Destroyed . | . . Combat | -11 -10 -------- Run | Scr Mat Damage Taken 683 | . 683 Core 254 | . 254 Absorbed by Shields . | . . Core Remaining (%) 100 | 100 . Volleys Fired 44 | 4 40 Largest 2 | 1 2 Hottest 60 | 40 60 Shots Fired 48 | 4 44 Gun 41 | 4 37 Cannon . | . . Launcher . | . . Special 7 | . 7 Kinetic 19 | . 19 Thermal 29 | 4 25 Explosive . | . . Electromagnetic . | . . Robot Hit Streak 10 | . 10 Robot Miss Streak 2 | . 2 Penetration Max . | . . Secondary Targets . | . . Shots Hit Robots 30 | . 30 Core Hits 8 | . 8 Critical Kills . | . . Critical Parts Destroyed . | . . Critical Strikes 1 | . 1 Sever 1 | . 1 Melee Attacks . | . . Impact . | . . Slashing . | . . Piercing . | . . Sneak Attacks . | . . Combat Hostiles . | . . Follow-up Attacks . | . . Damage Inflicted 291 | . 291 Guns 256 | . 256 Cannons . | . . Explosions . | . . Melee . | . . Ramming . | . . Kinetic 116 | . 116 Thermal 175 | . 175 Explosive . | . . Electromagnetic . | . . Impact . | . . Slashing . | . . Piercing . | . . Highest Corruption . | . . Average Corruption . | . . Corruption Purged . | . . Corruption Blocked . | . . Overload Shots . | . . Overflow Damage . | . . Projectiles . | . . Explosions . | . . Melee . | . . Knockbacks . | . . Impact . | . . Kinetic . | . . Secondary . | . . Self-Inflicted Damage . | . . Shots . | . . Rammed . | . . Targets Rammed . | . . Kicked . | . . Crushed . | . . Highest Temperature 36 | . 36 Average Temperature 10 | . 10 Received Heat Transfer 396 | . 396 Siege Activations . | . . Robots Corrupted . | . . Combat Hostiles . | . . Parts Fried . | . . Impact Corruptions . | . . Robots Melted . | . . Combat Hostiles . | . . Parts Melted . | . . Heat Transferred 436 | . 436 Parts Sabotaged . | . . Parts Stolen . | . . Parts Stripped . | . . Power Chain Reactions . | . . Missiles Intercepted . | . . Alert | -11 -10 ------- Run | Scr Mat Peak Influence 140 | . 140 Initial . | . . Average 29 | . 35 Maximum Alert Level . | . . Low Security (%) 100 | 100 100 Level 1 . | . . Level 2 . | . . Level 3 . | . . Level 4 . | . . Level 5 . | . . High Security . | . . Max Security . | . . Squads Dispatched 2 | . 2 Investigation . | . . Extermination . | . . Reinforcement 2 | . 2 Assault . | . . Garrison . | . . Intercept . | . . Searches Triggered . | . . Construction Impeded . | . . Haulers Reinforced . | . . Active Scanning Responses . | . . Cargo Convoy Interrupts . | . . Stealth | -11 -10 --------- Run | Scr Mat Distress Signals 1 | . 1 Communications Jammed . | . . Distress Signals . | . . Times Spotted 16 | . 16 Peak Tracking Total 3 | . 3 Tactical Retreats 3 | . 3 Traps | -11 -10 ------- Run | Scr Mat Traps Triggered . | . . Indirectly . | . . Trap Hack Attempts . | . . Triggered . | . . Disarmed . | . . Reprogrammed . | . . Reused . | . . Traps Extracted . | . . Installed . | . . Triggered . | . . Machines | -11 -10 ---------- Run | Scr Mat Machines Disabled . | . . Max in Single Turn . | . . Machines Sabotaged . | . . Garrisons Compromised . | . . Overloaded Fab Kills . | . . Hacking | -11 -10 --------- Run | Scr Mat Machines Accessed 1 | . 1 Terminals 1 | . 1 Fabricators . | . . Repair Stations . | . . Recycling Units . | . . Scanalyzers . | . . Garrison Access . | . . Total Hacks 1 | . 1 Successful 1 | . 1 Failed . | . . Catastrophic . | . . Database Lockouts . | . . Manual . | . . Terminals 1 | . 1 Fabricators . | . . Repair Stations . | . . Recycling Units . | . . Scanalyzers . | . . Garrison Access . | . . Terminal Hacks 1 | . 1 Hauler Manifests 1 | . 1 Fabricator Hacks . | . . Repair Station Hacks . | . . Recycling Unit Hacks . | . . Scanalyzer . | . . Garrison Access Hacks . | . . Unauthorized Hacks . | . . Terminals . | . . Fabricators . | . . Repair Stations . | . . Recycling Units . | . . Scanalyzers . | . . Garrison Access . | . . Data Cores Recovered . | . . Used . | . . Hacking Detections . | . . Full Trace Events . | . . Feedback Events . | . . Feedback Blocked . | . . Robot Schematics Acquired . | . . Robots Built . | . . Authchips . | . . Time . | . . Total Robot Build Rating . | . . Part Schematics Acquired . | . . Parts Built . | . . Authchips . | . . Time . | . . Total Part Build Rating . | . . Parts Repaired . | . . Time . | . . Parts Recycled . | . . Recycled Matter . | . . Retrieved Matter . | . . Retrieved Components . | . . Parts Scanalyzed . | . . Part Schematics Acquired . | . . Parts Damaged . | . . Bothacking | -11 -10 ------------ Run | Scr Mat Used RIF Installer . | . . Robots Hacked . | . . Non-combat . | . . Combat . | . . Robot Hacks Applied . | . . Relay Couplers Released . | . . Fabnet Peak Effective % . | . . Robots Rewired . | . . Allies Hacked . | . . Hacks Repelled . | . . Allies | -11 -10 -------- Run | Scr Mat Total Allies . | . . Largest Group . | . . Highest-Rated Group . | . . Highest-Rated Ally . | . . Total Orders . | . . Ally Attacks . | . . Total Damage . | . . Kills . | . . Allies Corrupted . | . . Allies Melted . | . . Intel | -11 -10 ------- Run | Scr Mat Robot Analysis Total . | . . Derelict Logs Recovered . | . . Drone Launches . | . . Drone Recoveries . | . . Exploration | -11 -10 ------------- Run | Scr Mat Turns Passed 681 | 115 566 Spaces Moved 589 | 93 496 Core 18 | 18 . Treads . | . . Legs 34 | 34 . Wheels 534 | 41 493 Hover . | . . Flight 3 | . 3 Fastest Speed 50 | 50 80 Average Speed 86 | 93 85 Slowest Speed 205 | 120 205 Overloaded Moves . | . . Propulsion Burnouts . | . . Robots Hopped . | . . Cave-ins Triggered . | . . Exploration Rate (%) 32 | 5 59 Regions Visited 1 Branch Regions . Pre-discovered Areas . | . . Known Exits Taken . | . . Unknown Exits Taken 1 | 1 . Scrap Searched . | . . Spaces Dug . | . . Terrain Destroyed . | . . Melee . | . . Projectile . | . . AOE . | . . Terrain Rammed . | . . Walls Destroyed . | . . Machines Disabled . | . . Actions | -11 -10 --------- Run | Scr Mat Total 709 | 114 595 Wait 28 | . 28 Move 588 | 92 496 Hop . | . . Pick Up 23 | 9 14 Fast Attach . | . . Attach 14 | 5 9 Detach 2 | . 2 Swap 7 | 4 3 Drop 3 | . 3 Fire 44 | 4 40 Melee . | . . Ram . | . . Kick . | . . Crush . | . . Escape Stasis . | . . Rewire . | . . Trap . | . . Miscellaneous . | . . Route ------- -11/Scrapyard -10/Materials (discovered 2 exits: [*Mat] / [*Min]) History --------- Turn | Location | Event 13 | -11/Scrapyard | Discovered new exit (range 16) 116 | -11/Scrapyard | Entered Materials 206 | -10/Materials | Discovered new exit (range 7) 313 | -10/Materials | Build established: Mutant 380 | -10/Materials | Discovered new exit (range 10) 585 | -10/Materials | Core integrity fell below 50% 617 | -10/Materials | Lost 3 parts (1p1n1w) 669 | -10/Materials | Core integrity fell below 20% 682 | -10/Materials | Destroyed by G-47 Trooper with Particle Gun Last Messages --------------- Plasma Cutter destroyed. Wheel destroyed. G-34 Mercenary destroyed. Acquired 12 matter. Sml. Laser destroyed. Lgt. Ion Engine destroyed. G-34 Mercenary destroyed. Acquired 13 matter. Acquired Ion Engine. Acquired Welding Torch. K-01 Serf collects debris. R-06 Scavenger destroyed. Acquired 33 matter. Acquired Com. Wheel. Wheel destroyed. Acquired 11 matter. Critical hit (Burn: +37). Welding Torch destroyed. Com. Wheel destroyed. Acquired 2 matter. Map ----- +----------------------------------------------------+ | #??????# #??????????#""" # #???? | | ### #??????###+###??????????#""" # #???? | | ### #????????# #????????????#""" # #???? | | # #???###### #??????????????"" # #???? | | " # #???# #??????????????? # #???? | | T # #???# #### #??????###?????####### #???? | | " # #???# #?? ??##### """ #???# ##???? | | # #???# #??###??#!! # """"" #???# #????? | | + ##### ##??????#!! # """"" #???# #????? | | # #??????#! # """"" #???# #????? | | # #??????# # """ #???# #????? | | ### #??????# # #???# #????? | | ??# """ #??????#! =# #???# #????? | | ??# """ ######?# # ###?# #????? | | ??# """ ###+######+#####T### #????? | | ? / #????? | | # < #????? | | # !! #????? | | ?# !! ###########+#####???? | | ?# !! #????????? ? #???? | | ??# "Y" [ #????????? ? ????? | | ??# """ #???????? ????? | | ??# ? """ #????????! ????? | | ?? ?? """"" ##############+#????? | | ??? ??### """"" g %! #????? | | ?????????# ?""""" g@ *! #????? | | ?????????? ?? """ ############# #????? | | ????????????? ############# #????? | | ??????????? # """"" # #????? | | ??????????? # """"" # #????? | | ????????????##a########### """"" # #????? | | ?????????????????????????# + #????? | | ?????????????????????????# # #????? | | ?????????????????????????# # #????? | | ?????????????????????????# + #????? | | ?????????????????????????############# #????? | | ?????????????????????????????????#!! ###### | | ?????????????????????????????????#!! # # | | ?????????????????????????????????#| # ! # | | ?????????????????????????????????#|| #=[= # | | ?????????????????????????????????#! #% # | | ?????????????????????????????????#!! /!% # | | ???????????????????????????########### # "" # | | ???????????????????????????# # # "T # | | ???????????????????????????# """ # # "" # | | ???????????????????????????# """"" # # # | | ???????????????????????????# """"" + ###### | | ???????????????????????????# """"" # #????? | | ???????????????????????????# """ # #????? | | ???????????????????????????# = ####????? | +----------------------------------------------------+ Best States ------------- Heat Dissipation 25 Energy Generation 10 Energy Capacity 250 Matter Stores 300 Matter Capacity 300 Sight Range 16 Terrain Scan Density 10 ECM Strength 1 Evasion (%) 55 Item Schematics ----------------- None Robot Schematics ------------------ None Fabricated ------------ Nothing Alien Tech Used ----------------- None Achievements -------------- Shopping List Challenges ------------ None Game ------ Seed FlightDispersionMembrane Manual? 0 Play Time 00:15:17 Cumulative 2.7 hours Start 2022.07.24 @ 20:06:35 End 2022.07.24 @ 20:28:23 Sessions 1 Manual Loads 0 Difficulty Rogue Special Mode None Game No. 6 Rogue 6 Adventurer 0 Explorer 0 Win Type - Total 0 Types 0/0/0/0/0/0/0/0/0 Lore% 1 Gallery% 6 Achievement% 7 Wizard Run 0 Options --------- ASCII 0 Keyboard 0 Movement Mouse Keybinds 0 Fullscreen 1 Font 18/Smallcaps Map View 76x50 Tactical HUD 0 Map Filters NONE Filters NONE Steam 1 RUN: eb15675d-6ea7-44d1-836d-65c485cccea5